Workbook

Sheet MYP, MSS
B1: Mikael Mantila | E1: 11.10.1979 Hämeenlinna
B2: YKKÖSPESIS | E2: Runkosarja | L2: Runkosarja TOP-10 | Q2: Jatkosarjat | X2: SUOMENSARJA | AA2: Runkosarja | AH2: Runkosarja TOP-10 | AM2: Jatkosarjat
B3: Vuosi | C3: Sija | D3: Seura | E3: OTT | F3: KUN | G3: LÖI | H3: TOI | I3: KL | J3: KL-% | L3: LÖI | M3: TOI | N3: L+T | O3: KL | Q3: OTT | R3: KUN | S3: LÖI | T3: TOI | U3: KL | V3: KL-% | X3: Vuosi | Y3: Sija | Z3: Seura | AA3: OTT | AB3: KUN | AC3: LÖI | AD3: TOI | AE3: KL | AF3: KL-% | AH3: LÖI | AI3: TOI | AJ3: L+T | AK3: KL | AM3: OTT | AN3: KUN | AO3: LÖI | AP3: TOI | AQ3: KL | AR3: KL-%
X4: 1996 | Y4: 1. | Z4: Paukku
B5: 1997 | C5: 8. | D5: Paukku | E5: 15 | F5: 0 | G5: 5 | H5: 1 | I5: 30
B6: 1998 | C6: 13. | D6: Paukku | E6: 21 | F6: 0 | G6: 5 | H6: 5 | I6: 39
X8: 2001 | Y8: 6. | Z8: LaLu | AA8: 17 | AB8: 0 | AC8: 15 | AD8: 24 | AE8: 85 | AF8: 68.5 % | AG8: 124
X9: 2002 | Y9: 6. | Z9: LaLu | AA9: 14 | AB9: 0 | AC9: 2 | AD9: 10 | AE9: 50 | AF9: 61.7 % | AG9: 81
X10: 2003 | Y10: 10. | Z10: LaLu | AA10: 4 | AB10: 0 | AC10: 2 | AD10: 4 | AE10: 21 | AF10: 70.0 % | AG10: 30
X11: 2004 | Y11: 5. | Z11: Paukku | AA11: 15 | AB11: 1 | AC11: 19 | AD11: 10 | AE11: 85 | AF11: 67.5 % | AG11: 126 | AK11: 6.
X12: 2005 | Y12: 4. | Z12: Paukku | AA12: 11 | AB12: 4 | AC12: 14 | AD12: 29 | AE12: 78 | AF12: 78.0 % | AG12: 100 | AI12: 6. | AJ12: 9.
X13: 2006 | Y13: 2. | Z13: Paukku | AA13: 15 | AB13: 3 | AC13: 25 | AD13: 25 | AE13: 106 | AF13: 76.8 % | AG13: 138 | AH13: 8. | AJ13: 4. | AK13: 3. | AM13: 4 | AN13: 1 | AO13: 5 | AP13: 4 | AQ13: 22 | AR13: 68.8 % | AS13: 32
X15: 2009 | Y15: 7. | Z15: LaLu | AA15: 7 | AB15: 2 | AC15: 5 | AD15: 13 | AE15: 42 | AF15: 75.0 % | AG15: 56
X17: 2014 | Y17: 7. | Z17: Paukku | AA17: 7 | AB17: 0 | AC17: 1 | AD17: 17 | AE17: 37 | AF17: 80.4 % | AG17: 46
X18: 2015 | Y18: 5. | Z18: Paukku | AA18: 13 | AB18: 0 | AC18: 10 | AD18: 20 | AE18: 64 | AF18: 74.4 % | AG18: 86
X20: 2020 | Y20: 9. | Z20: LaLu | AA20: 11 | AB20: 0 | AC20: 1 | AD20: 6 | AE20: 23 | AF20: 40.4 % | AG20: 57
X21: 2021 | Y21: 8. | Z21: LaLu | AA21: 12 | AB21: 0 | AC21: 5 | AD21: 11 | AE21: 35 | AF21: 57.4 % | AG21: 61
X22: 2022 | Y22: 9. | Z22: JoKo Jun | AA22: 13 | AB22: 0 | AC22: 8 | AD22: 8 | AE22: 45 | AF22: 54.9 % | AG22: 82
X23: 2023 | Y23: 7. | Z23: JoKo Jun | AA23: 1 | AB23: 0 | AC23: 0 | AD23: 0 | AE23: 1 | AF23: 16.7 % | AG23: 6
B24: YHTEENSÄ | E24: =SUM(E4:E23) -> 36 | F24: =SUM(F4:F23) -> 0 | G24: =SUM(G4:G23) -> 10 | H24: =SUM(H4:H23) -> 6 | I24: =SUM(I4:I23) -> 69 | J24: 0.0 % | K24: =SUM(K4:K23) -> 0 | Q24: =SUM(Q4:Q23) -> 0 | R24: =SUM(R4:R23) -> 0 | S24: =SUM(S4:S23) -> 0 | T24: =SUM(T4:T23) -> 0 | U24: =SUM(U4:U23) -> 0 | V24: 0.0 % | W24: =SUM(W4:W23) -> 0 | X24: YHTEENSÄ | AA24: =SUM(AA4:AA23) -> 140 | AB24: =SUM(AB4:AB23) -> 10 | AC24: =SUM(AC4:AC23) -> 107 | AD24: =SUM(AD4:AD23) -> 177 | AE24: =SUM(AE4:AE23) -> 672 | AF24: =PRODUCT(AE24/AG24) -> 67.7 % | AG24: =SUM(AG4:AG23) -> 993 | AM24: =SUM(AM4:AM23) -> 4 | AN24: =SUM(AN4:AN23) -> 1 | AO24: =SUM(AO4:AO23) -> 5 | AP24: =SUM(AP4:AP23) -> 4 | AQ24: =SUM(AQ4:AQ23) -> 22 | AR24: =PRODUCT(AQ24/AS24) -> 68.8 % | AS24: =SUM(AS4:AS23) -> 32
B26: KAIKKI OTTELUT | E26: OTT | F26: KUN | G26: LÖI | H26: TOI | I26: KL | J26: KL-% | L26: ka/L | M26: ka/T | N26: ka/l+t | O26: ka/kl | R26: Seurat | T26: Paukku = Hämeenlinnan Paukku (1961), kasvattajaseura
B27: SUPERPESIS | E27: 0 | F27: 0 | G27: 0 | H27: 0 | I27: 0 | J27: 0.0 % | K27: =PRODUCT(I27/J27) ->  | L27: 0.00 | M27: 0.00 | N27: 0.00 | O27: 0.00 | T27: LaLu = Lammin Luja (1939)
B28: YKKÖSPESIS | E28: =PRODUCT(E24+Q24) -> 36 | F28: =PRODUCT(F24+R24) -> 0 | G28: =PRODUCT(G24+S24) -> 10 | H28: =PRODUCT(H24+T24) -> 6 | I28: =PRODUCT(I24+U24) -> 69 | K28: =PRODUCT(K24+W24) -> 0 | L28: =PRODUCT((F28+G28)/E28) -> 0.28 | M28: =PRODUCT(H28/E28) -> 0.17 | N28: =PRODUCT((F28+G28+H28)/E28) -> 0.44 | O28: =PRODUCT(I28/E28) -> 1.92 | T28: JoKo Jun = Jokioisten Koetus Juniorit (2018)
B29: SUOMENSARJA | E29: =PRODUCT(AA24+AM24) -> 144 | F29: =PRODUCT(AB24+AN24) -> 11 | G29: =PRODUCT(AC24+AO24) -> 112 | H29: =PRODUCT(AD24+AP24) -> 181 | I29: =PRODUCT(AE24+AQ24) -> 694 | J29: =PRODUCT(I29/K29) -> 67.7 % | K29: =PRODUCT(AG24+AS24) -> 1025 | L29: =PRODUCT((F29+G29)/E29) -> 0.85 | M29: =PRODUCT(H29/E29) -> 1.26 | N29: =PRODUCT((F29+G29+H29)/E29) -> 2.11 | O29: =PRODUCT(I29/E29) -> 4.82
B30: YHTEENSÄ | E30: =SUM(E27:E29) -> 180 | F30: =SUM(F27:F29) -> 11 | G30: 122 | H30: 187 | I30: 763 | K30: =SUM(K27:K29) ->  | L30: =PRODUCT((F30+G30)/E30) -> 0.74 | M30: =PRODUCT(H30/E30) -> 1.04 | N30: =PRODUCT((F30+G30+H30)/E30) -> 1.78 | O30: =PRODUCT(I30/E30) -> 4.24

Sheet Pelinjohtaja
B1: PELINJOHTAJAKORTTI
B2: Mikael Mantila | D2: 11.10.1979
B3: NSU | C3: Runkosarja | J3: Ylempi loppusarja | N3: Alempi loppusarja | R3: Mitalit | U3: Tittelit
B4: Vuosi | C4: Seura | D4: Sija | E4: O | F4: V | G4: H | H4: Voitto-% | J4: O | K4: V | L4: H | M4: Voitto-% | N4: O | O4: V | P4: H | Q4: Voitto-% | R4: 1 | S4: 2 | T4: 3
B5: 2003 | C5: Paukku | D5: 9. | E5: 1 | F5: 0 | G5: 1 | H5: =PRODUCT(F5/E5) -> 0.0 % | U5: Vuoden pelinjohtaja (TSU)
B6: Yhteensä | E6: =SUM(E5:E5) -> 1 | F6: =SUM(F5:F5) -> 0 | G6: =SUM(G5:G5) -> 1 | H6: =PRODUCT(F6/E6) -> 0.0 % | J6: =SUM(J5:J5) -> 0 | K6: =SUM(K5:K5) -> 0 | L6: =SUM(L5:L5) -> 0 | M6: 0.0 % | N6: =SUM(N5:N5) -> 0 | O6: =SUM(O5:O5) -> 0 | P6: =SUM(P5:P5) -> 0 | Q6: 0.0 % | R6: =SUM(R5:R5) -> 0 | S6: =SUM(S5:S5) -> 0 | T6: =SUM(T5:T5) -> 0
B8: URA SUPERISSA | E8: O | F8: V | G8: H | H8: Voitto-% | J8: PLAY OFF | M8: SARJAT | N8: O | O8: V | P8: H | Q8: Voitto-%
B9: Runkosarja | E9: =PRODUCT(E6) -> 1 | F9: =PRODUCT(F6) -> 0 | G9: =PRODUCT(G6) -> 1 | H9: =PRODUCT(F9/E9) -> 0.0 % | J9: Puolivälierät
B10: Ylempi loppusarja | J10: Välierät
B11: Alempi loppusarja | J11: Finaalit
B12: KAIKKI | E12: =SUM(E9:E11) -> 1 | F12: =SUM(F9:F11) -> 0 | G12: =SUM(G9:G11) -> 1 | H12: =PRODUCT(F12/E12) -> 0.0 % | J12: KAIKKI
B14: Seurat: | C14: Paukku = Hämeenlinnan Paukku (1961)
